bitfinex/quotes_ETHUSD_20250802
["timestamp","ask_amount","ask_price","bid_price","bid_amount"]
[1754147543370,37.9744,3488.0,3487.9,0.9196]
[1754147543650,37.488,3488.0,3487.9,0.9196]
[1754147543832,38.038,3488.0,3487.9,0.9196]
[1754147544500,33.55,3488.0,3487.9,0.9196]
[1754147544702,38.038,3488.0,3487.9,0.9196]
[1754147545023,39.8892958,3488.0,3487.9,0.9196]
[1754147547190,33.0,3488.0,3487.9,0.9196]
[1754147547442,37.488,3488.0,3487.9,0.9196]
[1754147548943,38.38505601,3488.0,3487.9,0.002]
[1754147549129,42.19989298,3488.0,3487.9,0.002]
[1754147549336,43.26764348,3488.0,3487.9,0.002]
[1754147549507,45.78883454,3488.0,3487.9,0.002]
[1754147554524,37.80503454,3488.0,3487.9,0.002]
[1754147554721,12.29203454,3488.0,3487.9,0.9196]
[1754147554919,8.87378747,3488.0,3487.9,0.9196]
[1754147555235,38.87378747,3488.0,3487.9,0.9196]
[1754147555437,1.38678747,3488.0,3487.9,0.9196]
[1754147555607,5.37378747,3488.0,3487.9,0.9196]
[1754147556106,7.487,3488.0,3487.9,0.9196]
[1754147557230,38.037,3488.0,3487.9,0.002]
[1754147557416,40.90524707,3488.0,3487.9,0.002]
[1754147557946,41.37904707,3488.0,3487.9,0.002]
[1754147558147,41.37904707,3488.0,3487.1,0.4599]
[1754147558148,0.55,3487.5,3487.1,0.4577]
[1754147558358,0.55,3487.1,3486.8,0.4619]
[1754147558538,3.0,3486.9,3486.8,0.002]
[1754147559013,3.0,3486.9,3486.8,0.9196]
[1754147559213,3.0,3486.9,3486.8,0.4597]
[1754147559413,3.0,3487.3,3486.8,0.9196]
[1754147559802,3.0,3487.1,3486.9,0.9176]
[1754147559923,0.55,3487.9,3487.0,0.9176]
[1754147559924,30.0,3487.9,3487.0,0.9176]
[1754147560245,30.0,3487.6,3487.1,0.9176]
[1754147560467,0.28739,3488.2,3487.2,0.9176]
[1754147560613,1.30521253,3488.4,3487.3,0.9176]
[1754147560960,1.30521253,3488.4,3487.4,0.9176]
[1754147561168,34.486,3488.2,3487.5,0.9176]
[1754147561340,30.0,3488.2,3487.6,0.9176]
[1754147561539,1.30521253,3488.4,3487.1,0.01999743]
[1754147561540,4.486,3488.1,3487.7,0.9176]
[1754147561850,1.30521253,3488.4,3487.8,1.95006236]
[1754147562054,1.30521253,3488.4,3487.9,0.93758988]
[1754147562207,4.486,3488.2,3488.0,0.9176]
[1754147562411,4.486,3488.2,3488.1,0.9176]
[1754147562606,4.486,3488.2,3488.1,0.14500624]
[1754147562812,4.486,3488.2,3488.1,1.06260624]
[1754147563659,1.30521253,3488.4,3488.1,1.06260624]
[1754147563808,0.001,3490.0,3488.9,9.40702355]
[1754147564016,4.485,3489.9,3489.0,0.01996284]
[1754147564215,3.0,3489.8,3489.1,1.86029864]
[1754147564442,4.485,3489.7,3489.2,0.9176]
[1754147564649,4.485,3489.7,3489.3,1.10362986]
[1754147564962,4.485,3489.7,3489.4,0.9176]
[1754147565111,4.485,3489.7,3489.1,0.4599]
[1754147565313,4.485,3489.7,3489.5,0.4577]
[1754147565553,4.485,3489.7,3489.1,0.4599]
[1754147565554,4.485,3489.7,3489.6,0.4577]
[1754147565972,4.485,3489.7,3489.2,0.4577]
[1754147566188,4.485,3489.7,3489.3,0.4577]
[1754147566333,4.485,3489.6,3489.4,0.9176]
[1754147566539,4.485,3489.5,3488.7,9.40702355]
[1754147566773,4.485,3489.5,3488.8,0.94070236]
[1754147567085,4.485,3489.5,3488.9,0.4577]
[1754147567569,4.485,3489.5,3488.1,0.14500624]
[1754147567570,3.0,3489.4,3488.1,0.14500624]
[1754147567791,4.5208238,3489.3,3488.6,0.4577]
[1754147567943,4.485,3489.3,3488.6,0.4577]
[1754147568653,4.9588,3489.3,3488.6,0.4577]
[1754147569234,3.0,3489.2,3488.6,0.4577]
[1754147569437,3.03582483,3489.2,3488.6,0.4577]
[1754147569660,3.0,3489.2,3488.6,0.4577]
[1754147570831,0.50962585,3489.1,3488.6,0.4577]
[1754147571034,4.9568,3489.0,3488.6,0.4577]
[1754147571259,3.0,3488.9,3488.0,0.4599]
[1754147571466,3.0,3488.9,3488.2,0.4577]
[1754147571646,3.0,3488.9,3488.2,0.9176]
[1754147571850,3.0,3488.9,3488.2,0.4599]
[1754147572055,3.0,3488.9,3488.3,0.4307]
[1754147572641,4.483,3488.8,3488.4,0.4588]
[1754147572880,4.483,3488.7,3488.5,0.4307]
[1754147573193,4.483,3488.7,3488.6,0.4307]
[1754147573544,4.483,3488.7,3488.6,0.8895]
[1754147573748,4.483,3488.7,3488.6,1.70519123]
[1754147574803,4.483,3488.7,3488.6,0.8895]
[1754147576882,4.483,3488.7,3488.6,0.4307]
[1754147579779,4.483,3488.7,3488.4,0.4307]
[1754147580080,4.483,3488.7,3488.5,0.4307]
[1754147580385,4.483,3488.7,3488.2,0.4307]
[1754147580694,4.483,3488.7,3487.9,0.002]
[1754147580695,4.483,3488.7,3488.3,0.4307]
[1754147580982,4.9478,3488.7,3487.9,0.002]
[1754147581156,4.9478,3488.7,3487.9,0.4327]
[1754147581157,0.4648,3488.6,3487.9,0.4327]
[1754147582148,4.483,3488.7,3487.9,0.4327]
[1754147582378,4.483,3488.7,3488.0,0.4588]
[1754147582583,4.483,3488.7,3488.1,0.4307]
[1754147583796,4.9478,3488.7,3488.1,0.4307]
[1754147584340,4.481,3488.6,3488.2,7.26741226]
[1754147584617,3.0,3489.1,3488.3,1.24639123]
[1754147584929,3.0,3488.9,3488.4,0.4307]
[1754147585077,4.481,3489.0,3488.4,0.4307]
[1754147585279,4.481,3489.0,3488.5,0.4307]
[1754147585584,4.481,3489.0,3488.6,0.4307]
[1754147585803,0.4658,3489.2,3488.7,0.4307]
[1754147585804,4.481,3488.9,3488.7,0.4307]
[1754147586724,4.9458,3488.9,3488.4,0.4307]
[1754147586920,4.481,3488.9,3488.1,0.4588]
[1754147587122,4.9458,3488.9,3488.2,0.4307]
[1754147587620,4.481,3488.9,3488.2,0.4307]
[1754147589233,0.001,3489.2,3488.6,9.4053397]
[1754147589390,4.481,3488.8,3488.6,9.4053397]
[1754147589591,4.481,3488.8,3488.7,0.4307]
[1754147590418,0.001,3489.2,3488.7,0.8895]
[1754147590622,4.481,3489.2,3488.8,1.48828397]
[1754147590794,4.481,3489.2,3488.9,0.4307]
[1754147591208,4.481,3489.2,3489.0,0.4307]
[1754147592404,0.4648,3489.1,3488.8,1.02948397]
[1754147592598,0.4648,3489.1,3488.9,1.08655237]
[1754147593540,4.481,3489.2,3489.0,0.4307]
[1754147593705,4.481,3489.2,3489.1,0.4307]
[1754147595231,4.481,3489.2,3489.1,9.8360397]
[1754147595532,4.481,3489.2,3489.1,10.92829891]
[1754147596430,4.481,3489.2,3489.1,1.09225921]
[1754147596636,4.481,3489.2,3488.8,0.4307]
[1754147596929,4.481,3489.2,3488.9,0.4307]
[1754147597257,4.481,3489.2,3489.0,0.8895]
[1754147597643,4.481,3489.2,3489.1,0.4307]
[1754147599928,4.9458,3489.2,3488.7,0.4307]
[1754147600128,4.9458,3489.2,3488.8,1.41430397]
[1754147600415,0.001,3489.2,3489.1,9.4053397]
[1754147600661,0.001,3489.2,3489.1,10.2948397]
[1754147601563,0.001,3489.5,3489.3,0.55]
[1754147601860,0.001,3489.5,3489.4,0.92656129]
[1754147602048,0.001,3489.5,3489.4,2.31475139]
[1754147602253,0.001,3489.9,3489.5,3.55]
[1754147602560,0.001,3489.9,3489.8,9.4053397]
[1754147603167,0.001,3489.9,3489.8,10.3119397]
[1754147603663,0.001,3489.9,3489.4,1.3881901]
[1754147603664,0.001,3489.9,3489.4,4.3881901]
[1754147603977,0.463,3489.8,3489.5,1.39367298]
[1754147604441,0.463,3489.7,3489.5,1.39367298]
[1754147604759,0.463,3489.6,3489.2,0.4417]
[1754147604961,0.001,3489.9,3489.2,0.4417]
[1754147605120,0.463,3489.5,3489.0,3.0]
[1754147605326,0.463,3489.5,3489.1,2.27246437]
[1754147606054,0.463,3489.4,3489.1,1.83076437]
[1754147606358,0.001,3489.9,3489.1,1.83076437]
[1754147606565,0.001,3489.9,3488.8,0.4417]
[1754147606566,0.463,3489.3,3488.8,0.4417]
[1754147606728,0.43031764,3489.9,3488.5,0.4417]
[1754147606729,0.463,3489.2,3488.5,0.4417]
[1754147606929,0.463,3489.2,3488.5,0.9047]
[1754147607375,0.463,3489.2,3488.5,0.4417]
[1754147608067,0.463,3489.2,3488.6,0.98490397]
[1754147608242,0.463,3489.2,3488.4,0.002]
[1754147609059,0.463,3489.2,3488.4,9.8490397]
[1754147610071,4.476,3489.4,3489.0,9.4053397]
[1754147610275,4.476,3489.4,3489.1,0.4417]
[1754147610448,4.476,3489.4,3489.2,0.4417]
[1754147610646,4.476,3489.4,3489.2,1.42640397]
[1754147610880,4.939,3489.4,3489.0,9.4053397]
[1754147611176,4.939,3489.4,3489.0,9.8470397]
[1754147611685,4.476,3489.4,3489.0,9.8470397]
[1754147612261,4.939,3489.4,3489.0,9.8470397]
[1754147612671,4.939,3489.4,3489.1,0.98470397]
[1754147613152,0.463,3489.3,3489.1,0.98470397]
[1754147613995,4.476,3489.6,3489.1,0.98470397]
[1754147614298,0.001,3489.8,3489.5,9.4053397]
[1754147614782,0.001,3489.8,3489.6,0.4417]
[1754147615284,0.001,3489.8,3489.7,0.4417]
[1754147616058,0.464,3489.8,3489.3,0.4417]
[1754147616265,0.463,3489.7,3489.3,0.4417]
[1754147616474,0.001,3489.8,3489.4,0.79167]
[1754147616791,0.463,3489.6,3488.8,3.4417]
[1754147617164,0.463,3489.6,3488.8,0.4417]
[1754147617389,0.463,3489.6,3488.9,0.54667]
[1754147618703,4.938,3489.6,3489.0,9.4053397]
[1754147619399,4.938,3489.6,3489.0,9.8470397]
[1754147619867,0.001,3489.8,3489.1,0.4417]
[1754147620068,0.001,3489.8,3489.1,0.92656169]
[1754147620401,0.001,3489.8,3489.5,9.4053397]
[1754147620952,0.001,3489.8,3489.6,0.9066]
[1754147621387,0.001,3489.8,3489.6,0.4649]
[1754147621587,0.001,3489.8,3489.7,0.4417]
[1754147621900,0.001,3489.8,3489.7,0.9066]
[1754147622100,0.001,3489.8,3489.7,1.47289397]
[1754147622270,0.001,3489.8,3489.7,1.93779397]
[1754147623206,0.001,3489.8,3489.7,1.47289397]
[1754147623357,0.001,3489.8,3489.5,9.4053397]
[1754147623557,0.001,3489.8,3489.5,9.8470397]
[1754147623761,0.001,3489.8,3489.6,0.4417]
[1754147624197,0.001,3489.8,3489.6,0.9066]
[1754147624401,0.001,3489.8,3489.7,1.03119397]
[1754147624560,0.001,3489.8,3489.7,1.47289397]
[1754147625480,0.001,3489.8,3489.7,1.03119397]
[1754147625796,0.001,3489.8,3489.7,0.4417]
[1754147625967,0.001,3489.8,3489.4,4.473]
[1754147626172,0.001,3489.8,3489.6,0.4417]
[1754147626600,0.463,3489.7,3489.3,13.8783397]
[1754147626755,0.463,3489.7,3489.3,14.3200397]
[1754147626959,0.001,3489.8,3489.3,14.3200397]
[1754147626960,0.001,3489.8,3489.3,1.43200397]
[1754147627159,0.463,3489.6,3489.0,0.114891]
[1754147627379,4.936,3489.6,3488.5,4.473]
[1754147627614,4.936,3489.6,3488.4,4.9167]
[1754147627774,0.463,3489.5,3488.4,0.4437]
[1754147628118,0.463,3489.5,3488.5,1.47869397]
[1754147628415,0.8565,3489.5,3488.5,1.47869397]
[1754147628575,0.463,3489.4,3488.5,1.47869397]
[1754147628777,0.8565,3489.4,3488.4,0.002]
[1754147629273,0.463,3489.3,3488.4,0.002]
[1754147629476,4.472,3489.2,3488.8,9.4053397]
[1754147629789,0.001,3489.8,3488.9,0.4417]
[1754147629790,4.472,3489.4,3488.9,0.4417]
[1754147630098,4.472,3489.4,3488.8,9.4053397]
[1754147630099,0.463,3489.3,3489.0,0.4417]
[1754147630802,4.472,3489.4,3488.8,9.4053397]
[1754147630989,4.472,3489.4,3489.1,0.4417]
[1754147631905,0.4719,3489.3,3488.8,9.8484397]
[1754147632106,0.4719,3489.3,3488.9,0.4431]
[1754147633415,4.472,3489.4,3489.0,0.4431]
[1754147633699,4.472,3489.4,3488.9,0.0199686]
[1754147633902,4.472,3489.4,3489.1,0.4431]
[1754147634071,4.9439,3489.4,3489.1,0.4431]
[1754147636306,0.4719,3489.3,3489.1,0.4431]
[1754147637385,0.4719,3489.2,3488.8,1.03133397]
[1754147637588,0.4719,3489.1,3488.7,0.4431]
[1754147637775,4.472,3489.4,3488.7,0.4431]
[1754147637980,0.4719,3489.1,3488.7,0.4431]
[1754147638199,0.4719,3489.1,3488.5,4.472]
[1754147638373,0.4719,3489.1,3488.8,0.4431]
[1754147638574,0.4719,3489.1,3488.8,0.49151]
[1754147638788,4.472,3489.4,3488.9,0.4431]
[1754147638991,0.4719,3489.3,3488.9,0.4431]
[1754147639192,4.472,3489.4,3488.9,0.4431]
[1754147639422,0.4719,3489.2,3488.3,9.8484397]
[1754147639617,0.4719,3489.2,3488.0,3.4908]
[1754147639618,0.4719,3489.2,3488.0,0.002]
[1754147639925,0.3935,3489.1,3488.0,0.002]
[1754147640624,0.4719,3489.0,3488.0,0.002]
[1754147640824,4.471,3488.9,3488.0,0.002]
[1754147641328,0.4719,3488.8,3488.0,0.002]
[1754147641498,0.4719,3488.8,3488.0,0.4451]
[1754147642317,0.4719,3488.7,3488.1,0.02198058]
[1754147642494,0.4719,3488.7,3488.4,0.4451]
[1754147642691,4.471,3488.7,3488.5,0.4431]
[1754147643033,4.471,3488.7,3488.4,0.002]
[1754147643393,4.471,3488.8,3488.5,0.4431]
[1754147643599,0.4719,3489.0,3488.5,0.4431]
[1754147643894,4.471,3488.9,3488.6,0.4431]
[1754147644226,0.4719,3488.9,3488.6,0.4431]
[1754147645034,4.471,3489.0,3488.4,0.002]
[1754147645200,5.878939,3489.0,3488.5,0.4431]
[1754147645531,30.0,3488.8,3488.4,0.002]
[1754147645732,3.0,3488.5,3488.4,0.002]
[1754147645930,4.50683201,3488.5,3488.4,0.002]
[1754147646097,5.37223201,3488.5,3488.4,0.002]
[1754147646291,8.3364,3488.5,3488.4,0.002]
[1754147646499,7.9429,3488.5,3488.4,0.002]
[1754147648230,4.9429,3488.5,3488.4,0.002]
[1754147649011,4.471,3488.5,3488.4,0.002]
[1754147649323,4.471,3488.8,3488.4,0.4451]
[1754147649641,4.9429,3488.8,3488.4,0.4451]
[1754147650123,0.4719,3488.7,3488.4,0.002]
[1754147650647,0.4719,3488.6,3488.4,0.002]
[1754147652627,4.471,3488.8,3488.4,0.002]
[1754147653195,4.471,3488.8,3488.5,0.4431]
[1754147653400,4.471,3488.8,3488.6,0.4431]
[1754147653602,1.407939,3489.0,3488.7,0.4431]
[1754147653799,1.407939,3489.0,3488.8,0.4431]
[1754147654194,1.407939,3489.0,3488.4,0.002]
[1754147654408,0.4719,3488.9,3488.4,0.49828]
[1754147654598,0.03582893,3488.8,3488.4,0.002]
[1754147654919,4.47,3488.7,3488.4,0.002]
[1754147655320,0.4719,3488.6,3488.4,0.002]
[1754147655825,4.47,3488.7,3488.4,0.002]
[1754147656017,0.4719,3488.5,3488.4,0.002]
[1754147657637,4.47,3488.7,3488.4,0.002]
[1754147657941,4.47,3488.7,3488.4,0.4451]
[1754147658241,4.47,3488.7,3488.5,0.4431]
[1754147659006,4.47,3488.7,3488.4,0.002]
[1754147659201,4.9419,3488.7,3488.4,0.002]
[1754147661935,4.9419,3488.7,3488.4,0.4633]
[1754147662524,4.47,3488.7,3488.4,0.002]
[1754147662714,1.407939,3489.0,3488.5,0.9374]
[1754147662962,4.469,3488.9,3488.6,1.51574947]
[1754147663141,1.407939,3489.0,3488.7,0.4613]
[1754147663651,1.407939,3489.0,3488.8,0.4613]
[1754147664927,0.4737,3488.9,3488.6,1.03447397]
[1754147665129,1.407939,3489.0,3488.4,0.002]
[1754147665332,0.4737,3488.8,3488.4,0.4633]
[1754147665852,0.4737,3488.8,3488.5,0.4613]
[1754147666012,1.407939,3489.0,3488.4,0.002]
[1754147666213,1.407939,3489.0,3488.6,0.4613]
[1754147666613,1.407939,3489.0,3488.7,0.4613]
[1754147666911,1.407939,3489.0,3488.8,0.4613]
[1754147667723,1.407939,3489.0,3488.9,0.4613]
[1754147667928,1.407939,3489.0,3488.9,0.9374]
[1754147668125,1.407939,3489.0,3488.9,0.4613]
[1754147668432,1.881639,3489.0,3488.6,0.4613]
[1754147668643,1.407939,3489.0,3488.7,1.89496397]
[1754147668961,1.407939,3489.0,3488.8,0.4613]
[1754147669317,1.407939,3489.0,3488.9,0.4613]
[1754147671955,1.407939,3489.0,3488.9,0.48127082]
[1754147672349,1.407939,3489.0,3488.9,0.4613]
[1754147672521,1.407939,3489.0,3488.9,0.70040348]
[1754147675257,1.407939,3489.0,3488.9,0.7203743]
[1754147675467,1.407939,3489.0,3488.9,0.70040348]
[1754147677161,1.881639,3489.0,3488.9,0.23910348]
[1754147677830,1.407939,3489.0,3488.9,0.70040348]
[1754147678830,1.407939,3489.0,3488.9,7.15357519]
[1754147679031,1.407939,3489.0,3488.9,0.23910348]
[1754147679226,1.881639,3489.0,3488.6,6.45317171]
[1754147679432,0.4737,3488.9,3488.6,6.45317171]
[1754147679979,1.407939,3489.0,3488.6,6.45317171]
[1754147680130,0.4737,3488.9,3488.6,6.91447171]
[1754147680471,0.4737,3488.8,3488.7,0.69164717]
[1754147680759,1.881639,3489.0,3488.7,0.69164717]
[1754147680963,0.4737,3488.9,3488.7,0.69164717]
[1754147681161,1.407939,3489.0,3488.7,0.69164717]
[1754147681466,0.4737,3488.8,3488.7,0.69164717]
[1754147681625,1.881639,3489.0,3488.7,0.69164717]
[1754147681831,1.881639,3489.0,3488.9,6.45317171]
[1754147681832,1.407939,3489.0,3488.9,6.45317171]
[1754147682068,1.407939,3489.0,3488.9,6.91447171]
[1754147683246,1.881639,3489.0,3488.9,6.45317171]
[1754147683967,1.881639,3489.0,3488.7,0.69164717]
[1754147684269,1.407939,3489.0,3488.8,0.4613]
[1754147684467,1.407939,3489.0,3488.8,1.66831189]
[1754147684773,0.4737,3488.9,3488.8,1.20701189]
[1754147686869,0.4737,3488.9,3488.7,0.69164717]
[1754147686870,0.4737,3488.9,3488.4,4.466]
[1754147687542,0.8672,3488.9,3488.4,0.002]
[1754147687751,0.4737,3488.9,3488.4,0.002]
[1754147687956,0.4737,3488.9,3488.6,6.45317171]
[1754147688158,0.4737,3488.8,3488.6,6.45317171]
[1754147688474,1.407939,3489.0,3488.5,6.45317171]
[1754147688672,0.8672,3488.9,3488.4,0.002]
[1754147688894,0.2275139,3488.8,3488.4,0.002]
[1754147689038,0.4737,3488.8,3488.4,0.002]
[1754147689972,1.407939,3489.0,3488.4,0.002]
[1754147690153,0.4737,3488.7,3488.4,0.002]
[1754147691241,0.8672,3488.7,3488.4,0.002]
[1754147691672,0.4737,3488.6,3488.4,0.002]
[1754147692061,0.4562,3488.5,3488.4,0.002]
[1754147692265,0.4562,3488.9,3488.5,0.459]
[1754147692494,0.4562,3488.9,3488.8,6.45317171]
[1754147692750,1.407939,3489.0,3488.8,6.91217171]
[1754147693560,1.407939,3489.0,3488.9,0.459]
[1754147693758,1.407939,3489.0,3488.6,4.462]
[1754147693981,0.4562,3488.9,3488.5,7.14458888]
[1754147694186,0.4562,3488.9,3488.4,0.002]
[1754147694351,0.4562,3488.9,3488.4,6.45517171]
[1754147694967,0.4562,3488.8,3488.4,6.45517171]
[1754147695198,1.407939,3489.0,3488.4,6.45517171]
[1754147695397,0.4562,3488.7,3488.4,6.45517171]
[1754147695684,0.4562,3488.6,3488.4,0.002]
[1754147695895,0.8497,3488.6,3488.4,0.002]
[1754147696102,0.3935,3488.5,3488.4,0.002]
[1754147696370,0.8497,3488.5,3488.4,0.002]
[1754147697693,0.4562,3488.5,3488.4,0.002]
[1754147698191,0.8497,3488.5,3488.4,0.002]
[1754147698349,1.38087,3488.5,3488.4,0.002]
[1754147698754,0.98737,3488.5,3488.4,0.002]
[1754147698953,1.407939,3489.0,3488.4,0.002]
[1754147699388,0.4562,3488.8,3488.4,0.002]
[1754147699887,1.407939,3489.0,3488.4,0.002]
[1754147700191,0.4562,3488.7,3488.4,0.002]
[1754147700394,0.4562,3488.8,3488.5,0.459]
[1754147700888,0.4562,3488.7,3488.4,0.002]
[1754147701253,0.4562,3488.6,3488.4,0.002]
[1754147701677,0.8869939,3488.9,3488.4,0.002]
[1754147701866,0.4562,3488.5,3488.4,0.002]
[1754147702360,3.8497,3488.5,3488.4,0.002]
[1754147702603,4.684353,3488.5,3488.4,0.002]
[1754147703075,4.290853,3488.5,3488.4,0.002]
[1754147703281,4.684353,3488.5,3488.4,0.002]
[1754147703468,4.72018501,3488.5,3488.4,0.002]
[1754147703669,4.684353,3488.5,3488.4,0.002]
[1754147704492,7.9172,3488.5,3488.4,0.002]
[1754147706666,8.3107,3488.5,3488.4,0.002]
[1754147707610,8.45581854,3488.5,3488.4,0.002]
[1754147708468,9.00581854,3488.5,3488.4,0.002]
[1754147708799,39.00581854,3488.5,3488.4,0.002]
[1754147708967,11.87406561,3488.5,3488.4,0.002]
[1754147709291,41.87406561,3488.5,3488.4,0.002]
[1754147712560,37.41306561,3488.5,3488.4,0.002]
[1754147712896,42.22112162,3488.5,3488.4,0.002]
[1754147713193,41.87406561,3488.5,3488.4,0.002]
[1754147714030,11.47956561,3488.5,3488.4,0.002]
[1754147714312,10.92956561,3488.5,3488.4,0.002]
[1754147714922,6.46956561,3488.5,3488.4,0.002]
[1754147715221,8.06231854,3488.5,3488.4,0.002]
[1754147715580,4.9172,3488.5,3488.4,0.002]
[1754147715807,7.9172,3488.5,3488.4,0.002]
[1754147716381,7.461,3488.5,3488.4,0.002]
[1754147717652,7.461,3488.5,3488.4,0.461]
[1754147718123,7.461,3488.5,3488.4,0.9473]
[1754147718124,4.461,3488.5,3488.4,0.9473]
[1754147718481,4.461,3488.5,3488.4,0.461]
[1754147718683,4.461,3488.5,3488.4,0.9473]
[1754147718884,4.461,3488.5,3488.4,0.461]
[1754147719812,4.461,3488.5,3488.4,0.9473]
[1754147720586,4.461,3488.5,3488.4,0.461]
[1754147720781,4.9071,3488.5,3488.4,0.002]
[1754147720987,5.3633,3488.5,3488.4,0.002]
[1754147721235,5.39913201,3488.5,3488.4,0.002]
[1754147721532,5.3633,3488.5,3488.4,0.002]
[1754147721834,5.39913201,3488.5,3488.4,0.002]
[1754147722219,8.79263201,3488.5,3488.4,0.002]
[1754147722423,8.7568,3488.5,3488.4,0.002]
[1754147723512,8.3633,3488.5,3488.4,0.002]
[1754147723834,38.7568,3488.5,3488.4,0.002]
[1754147724143,39.3068,3488.5,3488.4,0.002]
[1754147724809,9.3068,3488.5,3488.4,0.002]
[1754147724996,39.3068,3488.5,3488.4,0.002]
[1754147725197,38.9133,3488.5,3488.4,0.002]
[1754147725440,8.3633,3488.5,3488.4,0.002]
[1754147725612,38.3633,3488.5,3488.4,0.002]
[1754147725812,8.3633,3488.5,3488.4,0.002]
[1754147726008,38.3633,3488.5,3488.4,0.002]
[1754147726398,8.3633,3488.5,3488.4,0.002]
[1754147726597,38.3633,3488.5,3488.4,0.002]
[1754147726841,8.3633,3488.5,3488.4,0.002]
[1754147727198,8.4051,3488.5,3488.4,0.002]
[1754147727631,38.4051,3488.5,3488.4,0.002]
[1754147727901,8.4051,3488.5,3488.4,0.002]
[1754147728100,7.9051,3488.5,3488.4,0.002]
[1754147728641,8.4031,3488.5,3488.4,0.002]
[1754147730123,38.7966,3488.5,3488.4,0.002]
[1754147732689,38.4031,3488.5,3488.4,0.002]
[1754147732857,7.9051,3488.5,3488.4,0.002]
[1754147733556,3.4461,3488.5,3488.4,0.4339]
[1754147733758,4.458,3488.5,3488.4,0.4339]
[1754147733962,4.458,3488.5,3488.4,0.8916]
[1754147734258,7.458,3488.5,3488.4,0.8916]
[1754147734824,7.458,3488.5,3488.4,0.4339]
[1754147735423,7.458,3488.5,3488.4,0.8916]
[1754147736065,7.458,3488.5,3488.4,0.4339]
[1754147736844,7.458,3488.5,3488.4,0.8916]
[1754147737831,7.458,3488.5,3488.4,0.4339]
[1754147739844,7.456,3488.5,3488.4,0.8916]
[1754147740151,7.456,3488.5,3488.4,0.4339]
[1754147740361,7.456,3488.5,3488.4,0.002]
[1754147741032,8.7494,3488.5,3488.4,0.002]
[1754147741377,9.1429,3488.5,3488.4,0.002]
[1754147741977,8.7494,3488.5,3488.4,0.002]
[1754147743267,3.0,3488.5,3488.4,0.002]
[1754147743480,7.456,3488.5,3488.4,0.4339]
[1754147743780,4.456,3488.5,3488.4,0.4339]
[1754147744571,1.407939,3489.0,3488.4,0.4339]
[1754147744787,3.0,3488.8,3488.4,0.8916]
[1754147744964,1.407939,3489.0,3488.5,0.4319]
[1754147744965,3.0,3488.6,3488.5,0.4319]
[1754147745149,3.0,3488.6,3488.5,0.8896]
[1754147745580,4.455,3488.6,3488.5,0.8896]
[1754147748172,1.407939,3489.0,3488.5,0.8896]
[1754147748377,4.455,3488.9,3488.6,0.8896]
[1754147748555,4.455,3488.9,3488.7,0.8896]
[1754147748755,4.455,3488.9,3488.8,0.8896]
[1754147750784,4.455,3488.9,3488.8,0.4319]
[1754147751310,4.455,3488.9,3488.8,0.8896]
[1754147751588,4.454,3488.9,3488.8,0.8896]
[1754147752289,1.407939,3489.0,3488.8,0.8896]
[1754147752492,5.861939,3489.0,3488.9,0.9373]
[1754147756658,1.407939,3489.0,3488.9,0.9373]
[1754147758198,1.407939,3489.0,3488.9,0.4485]
[1754147758695,5.859939,3489.0,3488.9,0.4485]
[1754147758896,5.859939,3489.0,3488.4,0.002]
[1754147759203,6.358639,3489.0,3488.5,0.7487]
[1754147759373,0.4987,3488.9,3488.4,0.002]
[1754147759577,4.452,3488.8,3488.4,0.4505]
[1754147759799,4.452,3488.8,3488.5,0.4485]
[1754147759977,4.452,3488.8,3488.4,0.002]
[1754147760201,4.452,3488.8,3488.6,0.4485]
[1754147760484,4.452,3488.8,3488.7,0.4485]
[1754147760684,4.451,3488.8,3488.7,0.9373]
[1754147760886,1.407939,3489.0,3488.7,10.3462415]
[1754147761090,1.407939,3489.0,3488.8,1.99389463]
[1754147761396,1.407939,3489.0,3488.9,0.4485]
[1754147761794,0.26398856,3489.0,3488.9,4.4873]
[1754147761989,0.001,3489.5,3489.0,1.93962415]
[1754147762170,0.001,3489.5,3489.4,12.4089415]
[1754147762368,0.001,3489.5,3489.4,12.9589415]
[1754147762910,0.001,3489.5,3489.4,13.8962415]
[1754147764106,0.001,3489.5,3489.4,3.4485]
[1754147764305,0.001,3489.5,3489.4,4.28215]
[1754147765006,0.001,3489.5,3489.4,0.34485]
[1754147765166,0.4997,3489.5,3489.1,0.4485]
[1754147765369,0.4997,3489.5,3489.0,5.83962415]
[1754147765370,0.001,3489.5,3489.2,0.4485]
[1754147765569,0.4997,3489.5,3489.2,0.4485]
[1754147766013,0.001,3489.5,3489.3,0.4684626]
[1754147766324,0.001,3489.5,3489.4,0.4888]
[1754147766698,0.001,3489.5,3489.4,0.95726055]
[1754147767428,0.001,3489.5,3489.4,0.9373]
[1754147767744,0.001,3489.5,3489.4,1.4873]
[1754147767916,0.001,3489.5,3489.4,2.71490981]
[1754147769298,0.001,3489.5,3489.4,2.73487036]
[1754147769615,0.001,3489.5,3489.4,2.71490981]